bitfinex-derivatives/quotes_BNBF0:USTF0_20241225
["timestamp","ask_amount","ask_price","bid_price","bid_amount"]
[1735091699692,0.26344219,698.53,696.92,0.28697698]
[1735091699894,0.26344219,698.52,696.92,0.28697698]
[1735091700095,0.28630325,698.56,696.92,0.28697698]
[1735091700295,0.26343969,698.55,696.92,0.28697698]
[1735091702900,0.26345324,698.54,696.92,0.28697698]
[1735091703096,0.26345324,698.53,696.92,0.28697698]
[1735091703296,0.26345324,698.55,696.92,0.28697698]
[1735091703500,0.26345324,698.54,696.92,0.28697698]
[1735091703701,0.26345324,698.53,696.92,0.28697698]
[1735091703901,0.26345324,698.52,696.92,0.28697698]
[1735091704105,0.26345324,698.51,696.92,0.28697698]
[1735091704405,0.26345324,698.5,696.92,0.28697698]
[1735091704599,0.26345324,698.49,696.92,0.28697698]
[1735091704802,0.28630325,698.56,696.92,0.28697698]
[1735091705005,1.06367798,698.54,696.92,0.28697698]
[1735091705204,0.26347347,698.53,696.92,0.28697698]
[1735091706204,1.06367798,698.52,696.92,0.28697698]
[1735091706399,0.26347347,698.51,696.92,0.28697698]
[1735091706904,1.06367798,698.44,696.92,0.28697698]
[1735091707104,0.26347347,698.43,696.92,0.28697698]
[1735091708204,1.06367798,698.36,696.92,0.28697698]
[1735091708404,0.26347347,698.35,696.92,0.28697698]
[1735091709106,0.26347347,698.34,696.92,0.28697698]
[1735091709300,0.26347347,698.33,696.92,0.28697698]
[1735091709503,0.26347347,698.32,696.92,0.28697698]
[1735091709704,0.26347347,698.31,696.92,0.28697698]
[1735091710006,0.26347347,698.3,696.92,0.28697698]
[1735091710205,0.26347347,698.29,696.92,0.28697698]
[1735091710406,0.26351331,698.28,696.92,0.28697698]
[1735091710606,1.06367798,698.37,696.92,0.28697698]
[1735091710806,0.2635026,698.36,696.92,0.28697698]
[1735091711206,0.26350595,698.35,696.92,0.28697698]
[1735091711403,0.26350595,698.34,696.92,0.28697698]
[1735091711606,0.26350595,698.33,696.92,0.28697698]
[1735091711909,0.26350595,698.32,696.92,0.28697698]
[1735091712104,0.26349376,698.31,696.92,0.28697698]
[1735091712305,0.26349376,698.3,696.92,0.28697698]
[1735091712506,1.06367798,698.4,696.92,0.28697698]
[1735091712703,0.26348642,698.39,696.92,0.28697698]
[1735091712906,0.26348642,698.38,696.92,0.28697698]
[1735091713109,0.26348642,698.37,696.92,0.28697698]
[1735091713312,0.26348685,698.36,696.92,0.28697698]
[1735091713505,0.26348685,698.35,696.92,0.28697698]
[1735091713709,0.26348685,698.34,696.92,0.28697698]
[1735091713904,1.06367798,698.45,696.92,0.28697698]
[1735091714105,0.26348322,698.44,696.92,0.28697698]
[1735091714610,1.06367798,698.42,696.92,0.28697698]
[1735091714810,0.26348322,698.41,696.92,0.28697698]
[1735091715705,1.06367798,698.4,696.92,0.28697698]
[1735091716105,0.26349269,698.39,696.92,0.28697698]
[1735091717911,1.06367798,698.37,696.92,0.28697698]
[1735091718108,0.26349269,698.36,696.92,0.28697698]
[1735091718706,0.26348256,698.35,696.92,0.28697698]
[1735091718908,1.06367798,698.37,696.92,0.28697698]
[1735091719610,0.28630325,698.56,696.92,0.28697698]
[1735091719911,0.2634618,698.55,696.92,0.28697698]
[1735091721505,0.26345854,698.54,696.92,0.28697698]
[1735091721706,0.26345854,698.53,696.92,0.28697698]
[1735091721909,0.26345854,698.52,696.92,0.28697698]
[1735091722106,0.26345854,698.51,696.92,0.28697698]
[1735091722306,0.26345854,698.5,696.92,0.28697698]
[1735091722507,0.26345854,698.49,696.92,0.28697698]
[1735091722706,0.26345854,698.48,696.92,0.28697698]
[1735091722908,0.26345854,698.47,696.92,0.28697698]
[1735091723214,0.28630325,698.56,696.92,0.28697698]
[1735091723215,0.26345854,698.46,696.92,0.28697698]
[1735091723411,0.26345854,698.45,696.92,0.28697698]
[1735091723612,0.28630325,698.56,696.92,0.28697698]
[1735091723809,0.26346692,698.55,696.92,0.28697698]
[1735091724313,0.26346512,698.54,696.92,0.28697698]
[1735091724515,0.26346512,698.53,696.92,0.28697698]
[1735091724714,0.26346512,698.52,696.92,0.28697698]
[1735091724909,0.26346512,698.51,696.92,0.28697698]
[1735091725109,0.26346512,698.5,696.92,0.28697698]
[1735091725315,0.28630325,698.56,696.92,0.28697698]
[1735091725316,0.26346512,698.49,696.92,0.28697698]
[1735091725510,0.26346512,698.48,696.92,0.28697698]
[1735091725711,0.28630325,698.56,696.92,0.28697698]
[1735091725913,0.26346783,698.55,696.92,0.28697698]
[1735091727013,0.26346372,698.54,696.92,0.28697698]
[1735091727214,0.26346372,698.53,696.92,0.28697698]
[1735091727413,0.26346372,698.52,696.92,0.28697698]
[1735091727614,0.26346372,698.51,696.92,0.28697698]
[1735091727815,0.26346372,698.5,696.92,0.28697698]
[1735091728013,0.28630325,698.56,696.92,0.28697698]
[1735091728014,0.26346372,698.49,696.92,0.28697698]
[1735091728219,0.26346372,698.48,696.92,0.28697698]
[1735091728415,0.26346372,698.47,696.92,0.28697698]
[1735091728617,0.26346372,698.46,696.92,0.28697698]
[1735091728819,0.26346372,698.45,696.92,0.28697698]
[1735091729019,0.26346372,698.44,696.92,0.28697698]
[1735091729218,0.26346372,698.43,696.92,0.28697698]
[1735091729520,0.26346372,698.42,696.92,0.28697698]
[1735091729720,1.06427327,698.51,696.92,0.28697698]
[1735091729921,0.26346719,698.5,696.92,0.28697698]
[1735091730821,0.26346719,698.49,696.92,0.28697698]
[1735091731020,0.26346719,698.48,696.92,0.28697698]
[1735091731219,0.26346719,698.47,696.92,0.28697698]
[1735091731517,0.26346719,698.46,696.92,0.28697698]
[1735091731720,0.26346719,698.45,696.92,0.28697698]
[1735091731921,1.06427327,698.51,696.92,0.28697698]
[1735091732320,0.26346391,698.5,696.92,0.28697698]
[1735091732720,0.26346391,698.49,696.92,0.28697698]
[1735091733019,0.28630325,698.56,696.92,0.28697698]
[1735091733215,0.26346405,698.55,696.92,0.28697698]
[1735091735424,0.26346007,698.54,696.92,0.28697698]
[1735091735622,0.26346007,698.53,696.92,0.28697698]
[1735091735924,0.26346007,698.52,696.92,0.28697698]
[1735091736222,0.28630325,698.56,696.92,0.28697698]
[1735091736423,0.26345398,698.55,696.92,0.28697698]
[1735091741024,0.26345286,698.54,696.92,0.28697698]
[1735091741220,0.26345286,698.53,696.92,0.28697698]
[1735091741425,0.26345286,698.52,696.92,0.28697698]
[1735091741725,0.26345286,698.51,696.92,0.28697698]
[1735091741917,0.26345286,698.5,696.92,0.28697698]
[1735091742218,0.26345286,698.49,696.92,0.28697698]
[1735091742425,0.26345286,698.48,696.92,0.28697698]
[1735091742726,0.28630325,698.56,696.92,0.28697698]
[1735091742926,0.26341381,698.55,696.92,0.28697698]
[1735091743719,0.28630325,698.56,696.93,1.0714771]
[1735091743923,0.26341443,698.55,696.95,0.28696463]
[1735091744625,0.2634248,698.54,696.95,0.28696463]
[1735091744821,0.2634248,698.53,696.95,0.28696463]
[1735091745022,0.28630325,698.56,696.95,0.28696463]
[1735091749629,0.26343595,698.55,696.95,0.28696463]
[1735091750824,0.28630325,698.56,696.95,0.28696463]
[1735091752529,0.26343103,698.55,696.95,0.28696463]
[1735091752830,0.28630325,698.56,696.95,0.28696463]
[1735091753030,0.26345147,698.55,696.95,0.28696463]
[1735091753829,0.28630325,698.56,696.95,0.28696463]
[1735091754131,0.26344171,698.55,696.95,0.28696463]
[1735091754825,0.28630325,698.56,696.95,0.28696463]
[1735091755031,0.26345596,698.55,696.95,0.28696463]
[1735091757727,0.26344836,698.54,696.95,0.28696463]
[1735091757924,0.26344836,698.53,696.95,0.28696463]
[1735091758130,0.26344836,698.52,696.95,0.28696463]
[1735091758324,0.26344836,698.51,696.95,0.28696463]
[1735091758628,0.28630325,698.56,696.95,0.28696463]
[1735091758823,0.26344855,698.55,696.95,0.28696463]
[1735091760431,0.28630325,698.56,696.95,0.28696463]
[1735091760730,0.26345543,698.55,696.95,0.28696463]
[1735091762325,1.06530092,698.44,696.95,0.28696463]
[1735091762531,0.26348427,698.43,696.95,0.28696463]
[1735091762831,1.06530092,698.44,696.95,0.28696463]
[1735091762832,0.26350028,698.42,696.95,0.28696463]
[1735091763131,0.26350028,698.41,696.95,0.28696463]
[1735091763332,0.26350028,698.4,696.95,0.28696463]
[1735091763532,0.26350028,698.39,696.95,0.28696463]
[1735091763833,1.3288012,698.38,696.95,0.28696463]
[1735091764034,0.26350028,698.37,696.95,0.28696463]
[1735091764832,1.06530092,698.35,696.95,0.28696463]
[1735091765033,0.26350028,698.34,696.95,0.28696463]
[1735091766232,1.06530092,698.41,696.95,0.28696463]
[1735091766233,0.26350028,698.33,696.95,0.28696463]
[1735091766534,0.26350028,698.32,696.95,0.28696463]
[1735091766835,0.26350028,698.31,696.95,0.28696463]
[1735091767031,0.26350028,698.3,696.95,0.28696463]
[1735091767334,0.26350028,698.29,696.95,0.28696463]
[1735091767532,0.28630325,698.56,696.95,0.28696463]
[1735091767533,0.26350028,698.28,696.95,0.28696463]
[1735091767733,0.26350028,698.27,696.95,0.28696463]
[1735091767934,1.06530092,698.41,696.95,0.28696463]
[1735091768133,0.26349674,698.4,696.95,0.28696463]
[1735091768834,0.26349787,698.39,696.95,0.28696463]
[1735091769030,0.26349787,698.38,696.95,0.28696463]
[1735091769227,0.26349787,698.37,696.95,0.28696463]
[1735091769428,0.26349787,698.36,696.95,0.28696463]
[1735091769632,0.26349787,698.35,696.95,0.28696463]
[1735091769829,0.26349787,698.34,696.95,0.28696463]
[1735091770033,0.26349787,698.33,696.95,0.28696463]
[1735091770235,0.26349787,698.32,696.95,0.28696463]
[1735091770536,0.26349787,698.31,696.95,0.28696463]
[1735091770735,1.06530092,698.43,696.95,0.28696463]
[1735091771035,0.26349791,698.42,696.95,0.28696463]
[1735091772430,0.26349791,698.41,696.95,0.28696463]
[1735091772635,0.26349791,698.4,696.95,0.28696463]
[1735091772835,0.26349791,698.39,696.95,0.28696463]
[1735091773037,0.26349791,698.38,696.95,0.28696463]
[1735091773232,0.26349791,698.37,696.95,0.28696463]
[1735091773432,0.26349791,698.36,696.95,0.28696463]
[1735091773635,0.26350401,698.35,696.95,0.28696463]
[1735091773840,0.26350401,698.34,696.95,0.28696463]
[1735091774035,1.06530092,698.37,696.95,0.28696463]
[1735091774036,0.26350401,698.33,696.95,0.28696463]
[1735091774233,0.26350401,698.32,696.95,0.28696463]
[1735091774435,0.26350401,698.31,696.95,0.28696463]
[1735091774629,0.26350401,698.3,696.95,0.28696463]
[1735091774831,0.26350401,698.29,696.95,0.28696463]
[1735091775035,0.26350401,698.28,696.95,0.28696463]
[1735091775232,0.26350401,698.27,696.95,0.28696463]
[1735091775435,0.26350401,698.26,696.95,0.28696463]
[1735091775636,0.26350401,698.25,696.95,0.28696463]
[1735091775835,0.26350401,698.24,696.95,0.28696463]
[1735091776035,0.26350401,698.23,696.95,0.28696463]
[1735091776240,1.06530092,698.38,696.95,0.28696463]
[1735091776433,0.26349806,698.37,696.95,0.28696463]
[1735091777639,0.26349806,698.36,696.95,0.28696463]
[1735091777836,0.26349806,698.35,696.95,0.28696463]
[1735091778040,0.26349806,698.34,696.95,0.28696463]
[1735091778243,0.26349806,698.33,696.95,0.28696463]
[1735091778537,0.26349806,698.32,696.95,0.28696463]
[1735091778738,0.26349806,698.31,696.95,0.28696463]
[1735091778933,0.26349806,698.3,696.95,0.28696463]
[1735091779135,1.06530092,698.38,696.95,0.28696463]
[1735091779335,0.28630325,698.56,696.95,0.28696463]
[1735091779336,1.06530092,698.34,696.95,0.28696463]
[1735091779534,0.26349261,698.33,696.95,0.28696463]
[1735091780440,1.32879353,698.33,696.95,0.28696463]
[1735091780640,0.26349261,698.32,696.95,0.28696463]
[1735091781342,1.06530092,698.31,696.95,0.28696463]
[1735091781640,0.26349261,698.3,696.95,0.28696463]
[1735091781842,0.26349396,698.29,696.95,0.28696463]
[1735091782036,0.26349396,698.28,696.95,0.28696463]
[1735091782241,0.26349396,698.27,696.95,0.28696463]
[1735091782436,0.26349396,698.26,696.95,0.28696463]
[1735091782636,0.26349396,698.25,696.95,0.28696463]
[1735091782837,0.26349396,698.24,696.95,0.28696463]
[1735091783144,0.26349396,698.23,696.95,0.28696463]
[1735091783343,0.26349396,698.22,696.95,0.28696463]
[1735091783543,0.26349396,698.21,696.95,0.28696463]
[1735091783845,0.26349396,698.2,696.95,0.28696463]
[1735091784040,0.26349396,698.19,696.95,0.28696463]
[1735091784238,0.26349396,698.18,696.95,0.28696463]
[1735091784439,0.26349396,698.17,696.95,0.28696463]
[1735091784638,1.06530092,698.31,696.95,0.28696463]
[1735091784842,0.26349557,698.3,696.95,0.28696463]
[1735091786639,1.32879649,698.3,696.95,0.28696463]
[1735091786945,0.26349557,698.29,696.95,0.28696463]
[1735091788947,1.32879649,698.29,696.95,0.28696463]
[1735091789245,0.26349557,698.28,696.95,0.28696463]
[1735091789946,1.32879649,698.28,696.95,0.28696463]
[1735091790140,0.26349557,698.27,696.95,0.28696463]
[1735091790338,1.06530092,698.28,696.95,0.28696463]
[1735091791143,14.79276646,705.07,696.95,0.28696463]
[1735091791144,1.06530092,698.31,696.95,0.28696463]
[1735091791343,0.26347742,698.3,696.95,0.28696463]
[1735091792348,0.26347742,698.29,696.95,0.28696463]
[1735091792642,0.26347742,698.28,696.95,0.28696463]
[1735091792847,1.06530092,698.35,696.95,0.28696463]
[1735091793042,0.26348471,698.34,696.95,0.28696463]
[1735091793641,1.32878563,698.34,696.95,0.28696463]
[1735091793845,1.06530092,698.34,696.95,0.28696463]
[1735091795049,1.06530092,698.3,696.95,0.28696463]
[1735091795450,0.26349185,698.29,696.95,0.28696463]
[1735091795850,2.18259244,698.69,696.95,0.28696463]
[1735091795851,1.06530092,698.33,696.95,0.28696463]
[1735091796346,0.26348398,698.32,696.95,0.28696463]
[1735091796754,1.06530092,698.34,696.95,0.28696463]
[1735091797955,1.06530092,698.41,696.95,0.28696463]
[1735091798154,0.26348737,698.4,696.95,0.28696463]
[1735091798354,1.06530092,698.41,696.95,0.28696463]
[1735091798854,10.01652653,705.31,696.95,0.28696463]
[1735091798855,1.06530092,698.44,696.95,0.28696463]
[1735091799752,1.06902487,698.73,696.95,0.28696463]
[1735091800656,1.06902487,698.77,696.95,0.28696463]
[1735091801448,2.18259244,699.69,696.95,0.28696463]
[1735091801449,1.06902487,698.81,696.95,0.28696463]
[1735091802248,1.06902487,698.83,696.95,0.28696463]
[1735091803150,2.18259244,699.75,696.95,0.28696463]
[1735091803151,1.06902487,698.88,696.95,0.28696463]
[1735091804155,1.06902487,698.9,696.95,0.28696463]
[1735091804954,1.06902487,699.3,696.95,0.28696463]
[1735091805149,0.28600846,699.28,696.95,0.28696463]
[1735091805353,0.26338108,699.27,696.95,0.28696463]
[1735091807049,0.28600846,699.28,696.95,0.28696463]
[1735091807254,0.26334498,699.27,696.95,0.28696463]
[1735091807556,1.06902487,699.18,696.95,0.28696463]
[1735091807752,0.26334498,699.17,696.95,0.28696463]
[1735091808460,0.26334498,699.16,696.95,0.28696463]
[1735091808658,0.26334498,699.15,696.95,0.28696463]
[1735091808854,0.26334498,699.14,696.95,0.28696463]
[1735091809058,0.26334498,699.13,696.95,0.28696463]
[1735091809259,0.26334498,699.12,696.95,0.28696463]
[1735091809558,0.26334498,699.11,696.95,0.28696463]
[1735091809757,1.06902487,699.23,696.95,0.28696463]
[1735091809954,0.263332,699.22,696.95,0.28696463]
[1735091810558,1.35503333,699.28,696.95,0.28696463]
[1735091810756,0.26333287,699.27,696.95,0.28696463]
[1735091810959,0.54934542,699.27,696.95,0.28696463]
[1735091811160,0.54934951,699.26,696.95,0.28696463]
[1735091811355,0.26333287,699.25,696.95,0.28696463]
[1735091811761,0.28602482,699.24,696.95,0.28696463]
[1735091811960,0.26333287,699.23,696.95,0.28696463]
[1735091812162,0.286033,699.22,696.95,0.28696463]
[1735091812356,0.26333287,699.21,696.95,0.28696463]
[1735091812555,0.28604118,699.2,696.95,0.28696463]
[1735091812759,0.26334325,699.19,696.95,0.28696463]
[1735091812957,0.54939262,699.18,696.95,0.28696463]
[1735091813160,0.54939671,699.17,696.95,0.28696463]
[1735091813464,0.5494008,699.16,696.95,0.28696463]
[1735091813659,0.54940489,699.15,696.95,0.28696463]
[1735091813855,0.28606573,699.14,696.95,0.28696463]
[1735091814062,0.26333341,699.13,696.95,0.28696463]
[1735091814359,0.28607392,699.12,696.95,0.28696463]
[1735091814560,0.26333341,699.11,696.95,0.28696463]
[1735091815361,0.28607392,699.12,696.95,0.28696463]
[1735091815561,0.26334367,699.11,696.95,0.28696463]
[1735091815764,0.2860821,699.1,696.95,0.28696463]
[1735091815969,0.26334367,699.09,696.95,0.28696463]
[1735091818171,0.26334399,699.08,696.95,0.28696463]
[1735091818370,0.26334399,699.07,696.95,0.28696463]
[1735091818671,0.26334399,699.06,696.95,0.28696463]
[1735091818873,0.26334399,699.05,696.95,0.28696463]
[1735091819071,0.26332603,699.04,696.95,0.28696463]
[1735091819270,0.26332603,699.03,696.95,0.28696463]
[1735091819467,0.26332603,699.02,696.95,0.28696463]
[1735091819674,0.26332603,699.01,696.95,0.28696463]
[1735091819872,0.2860821,699.1,696.95,0.28696463]
[1735091819873,0.26332603,699.0,696.95,0.28696463]
[1735091820074,0.26332603,698.99,696.95,0.28696463]
[1735091820269,0.26332603,698.98,696.95,0.28696463]
[1735091820473,0.26332603,698.97,696.95,0.28696463]
[1735091820673,0.26332603,699.09,696.95,0.28696463]
[1735091820868,0.26332105,699.08,696.95,0.28696463]
[1735091821073,0.26332105,699.07,696.95,0.28696463]
[1735091821269,0.26332105,699.06,696.95,0.28696463]
[1735091821469,0.2860821,699.1,696.95,0.28696463]
[1735091821470,0.26332105,699.05,696.95,0.28696463]
[1735091821771,0.26332105,699.04,696.95,0.28696463]
[1735091821976,0.26332105,699.03,696.95,0.28696463]
[1735091822275,0.26332105,699.02,696.95,0.28696463]
[1735091822476,0.26332105,699.01,696.95,0.28696463]
[1735091822776,0.2860821,699.1,696.95,0.28696463]
[1735091822976,0.26334108,699.09,696.95,0.28696463]
[1735091826973,0.26331728,699.08,696.95,0.28696463]
[1735091827178,0.26331728,699.07,696.95,0.28696463]
[1735091827374,0.2860821,699.1,696.95,0.28696463]
[1735091827375,0.26331728,699.06,696.95,0.28696463]
[1735091827680,0.26331728,699.05,696.95,0.28696463]
[1735091827879,0.26331728,699.04,696.95,0.28696463]
[1735091828080,0.26331728,699.03,696.95,0.28696463]
[1735091828377,0.26328105,699.02,696.95,0.28696463]
[1735091828577,0.26328105,699.01,696.95,0.28696463]
[1735091828777,0.26328105,699.0,696.95,0.28696463]
[1735091828977,0.26328089,698.99,696.95,0.28696463]
[1735091829179,0.26328089,698.98,696.95,0.28696463]
[1735091829382,0.26328089,698.97,696.95,0.28696463]
[1735091829681,0.26328089,698.96,696.95,0.28696463]
[1735091829879,0.2860821,699.1,696.95,0.28696463]
[1735091830082,0.26325679,699.09,696.95,0.28696463]
[1735091831180,0.26325647,699.08,697.0,1.0714771]
[1735091831380,0.26325647,699.07,697.0,1.0714771]
[1735091831581,0.26325647,699.06,697.0,1.0714771]
[1735091831784,0.26325647,699.05,697.0,1.0714771]
[1735091831981,0.26325647,699.04,697.0,1.0714771]
[1735091832179,0.26325647,699.03,696.98,1.0714771]
[1735091832382,0.26325647,699.02,696.98,1.0714771]
[1735091832580,0.26325647,699.01,696.98,1.0714771]
[1735091832780,0.26325647,699.0,696.98,1.0714771]
[1735091832980,0.2860821,699.1,696.96,1.0714771]
[1735091832981,0.26325647,698.99,696.96,1.0714771]
[1735091833179,0.26325647,698.98,696.96,1.0714771]
[1735091833381,0.26325647,698.97,696.96,1.0714771]
[1735091833579,0.26325647,698.96,696.96,1.0714771]
[1735091833776,0.2860821,699.1,696.96,1.0714771]
[1735091833976,0.26327703,699.09,696.95,1.35844173]
[1735091834582,0.26327391,699.08,696.95,1.35844173]
[1735091834785,0.26327391,699.07,696.97,1.0714771]
[1735091835083,0.26327391,699.06,696.97,1.0714771]
[1735091835278,0.26327391,699.05,696.97,1.0714771]
[1735091835481,0.26327391,699.04,696.96,1.0714771]
[1735091835681,0.26327391,699.03,697.06,0.28691934]
[1735091835882,0.26327391,699.02,697.06,0.28691934]
[1735091836078,0.26327391,699.01,697.06,0.28691934]
[1735091836282,0.26327391,699.0,697.06,0.28691934]
[1735091836483,0.26327391,698.99,697.06,0.28691934]
[1735091836682,0.26329377,698.98,697.06,0.28691934]
[1735091836886,0.26329377,698.97,697.06,0.28691934]
[1735091837083,0.26329377,698.96,697.06,0.28691934]
[1735091837284,0.26329377,699.09,697.06,0.28691934]
[1735091837586,0.26329377,699.08,697.06,0.28691934]
[1735091837885,0.26329377,699.07,697.06,0.28691934]
[1735091838180,0.26329377,699.06,697.06,0.28691934]
[1735091838389,0.26329377,699.05,697.06,0.28691934]
[1735091838586,0.26329377,699.04,697.06,0.28691934]
[1735091838790,0.26329377,699.03,697.06,0.28691934]
[1735091838987,0.26329377,699.02,697.06,0.28691934]
[1735091839290,0.2860821,699.1,697.06,0.28691934]
[1735091839489,0.26329325,699.09,697.06,0.28691934]
[1735091842188,0.26331063,699.08,697.06,0.28691934]
[1735091842490,0.26331063,699.07,697.06,0.28691934]
[1735091842689,0.26331063,699.06,697.06,0.28691934]
[1735091842890,0.26331063,699.09,697.06,0.28691934]
[1735091843190,0.26331063,699.08,697.06,0.28691934]
[1735091843390,0.26331063,699.07,697.06,0.28691934]
[1735091843587,0.26331063,699.06,697.06,0.28691934]
[1735091843791,0.26331063,699.05,697.06,0.28691934]
[1735091843993,0.2860821,699.1,697.06,0.28691934]
[1735091843994,0.26331063,699.04,697.06,0.28691934]
[1735091844290,0.26331063,699.03,697.06,0.28691934]
[1735091844491,0.26331063,699.02,697.06,0.28691934]
[1735091844686,0.26331063,699.01,697.06,0.28691934]
[1735091844887,0.2860821,699.1,697.06,0.28691934]
[1735091844888,0.26332022,699.0,697.06,0.28691934]
[1735091845090,0.26332022,698.99,697.06,0.28691934]
[1735091845286,0.26332022,698.98,697.06,0.28691934]
[1735091845493,0.26332022,698.97,697.06,0.28691934]
[1735091845686,0.26332022,698.96,697.06,0.28691934]
[1735091845891,0.26332022,698.95,697.06,0.28691934]
[1735091846094,0.26332022,698.94,697.06,0.28691934]
[1735091846294,0.26332022,698.93,697.06,0.28691934]
[1735091846495,0.26332022,698.92,697.06,0.28691934]
[1735091846794,0.26332022,698.91,697.06,0.28691934]
[1735091846994,0.26332022,698.9,697.06,0.28691934]
[1735091847195,0.26332022,698.89,697.06,0.28691934]
[1735091847497,0.26332022,698.88,697.06,0.28691934]
[1735091847697,0.26332839,698.87,697.06,0.28691934]
[1735091847888,0.26332839,698.86,697.06,0.28691934]
[1735091848196,0.2633285,698.85,697.06,0.28691934]
[1735091848396,0.2633285,698.84,697.06,0.28691934]
[1735091848594,0.2633285,698.83,697.06,0.28691934]
[1735091848795,0.2633285,698.82,697.06,0.28691934]
[1735091849096,1.06902487,699.09,697.06,0.28691934]
[1735091849097,0.2633285,698.81,697.06,0.28691934]
[1735091849298,0.2633285,698.8,697.06,0.28691934]
[1735091849497,0.2633285,698.79,697.06,0.28691934]
[1735091849694,1.06902487,699.05,697.06,0.28691934]
[1735091849893,0.26332758,699.04,697.06,0.28691934]
[1735091850296,0.2860821,699.1,697.06,0.28691934]
[1735091850498,0.26332821,699.09,697.06,0.28691934]
[1735091851298,0.26332911,699.08,697.06,0.28691934]
[1735091851499,0.26332911,699.07,697.06,0.28691934]
[1735091851699,0.26332911,699.06,697.06,0.28691934]
[1735091851899,0.26332911,699.05,697.06,0.28691934]
[1735091852200,0.26332911,699.04,697.06,0.28691934]
[1735091852399,0.26332911,699.03,697.06,0.28691934]
[1735091852597,0.26332911,699.02,697.06,0.28691934]
[1735091852796,0.2860821,699.1,697.06,0.28691934]
[1735091852797,0.26332911,699.01,697.06,0.28691934]
[1735091852993,0.26332911,699.0,697.06,0.28691934]
[1735091853193,0.26332911,698.99,697.06,0.28691934]
[1735091853395,0.26332911,698.98,697.06,0.28691934]
[1735091853600,0.26332911,698.97,697.06,0.28691934]
[1735091853794,0.2860821,699.1,697.06,0.28691934]
[1735091854000,0.26332156,699.09,697.06,0.28691934]
[1735091855604,1.06902487,699.08,697.06,0.28691934]
[1735091855802,0.26332156,699.07,697.06,0.28691934]
[1735091856004,1.06902487,699.08,697.06,0.28691934]
[1735091856206,0.26333598,699.07,697.06,0.28691934]
[1735091857006,1.06902487,699.04,697.06,0.28691934]
[1735091857206,0.26333598,699.03,697.06,0.28691934]
[1735091857800,0.26333598,699.02,697.06,0.28691934]
[1735091858106,0.26333598,699.01,697.06,0.28691934]
[1735091858305,0.26333598,699.0,697.06,0.28691934]
[1735091858500,0.26333598,698.99,697.06,0.28691934]
[1735091858701,0.26333598,698.98,697.06,0.28691934]
[1735091858900,0.26332954,698.97,697.06,0.28691934]
[1735091859105,0.26332954,698.96,697.06,0.28691934]
[1735091859306,0.26332954,698.95,697.06,0.28691934]
[1735091859505,0.26332954,698.94,697.06,0.28691934]
[1735091859707,0.26330114,698.93,697.06,0.28691934]
[1735091859900,0.26330114,698.92,697.06,0.28691934]
[1735091860103,0.26330114,698.91,697.06,0.28691934]
[1735091860304,0.26330114,698.9,697.06,0.28691934]
[1735091860501,0.26330114,698.89,697.06,0.28691934]
[1735091860701,0.2860821,699.1,697.18,1.0714771]
[1735091860702,0.26330114,698.88,697.18,1.0714771]
[1735091860907,0.26330114,698.87,697.18,1.0714771]
[1735091861100,0.26330114,698.86,697.18,1.0714771]
[1735091861304,0.26330114,698.85,697.18,1.0714771]
[1735091861508,0.26330114,698.84,697.39,1.0714771]
[1735091861701,0.26330114,698.83,697.39,1.0714771]
[1735091862006,0.26330114,698.82,697.41,0.28677535]
[1735091862307,0.26330114,698.81,697.41,0.28677535]
[1735091862502,1.06902487,699.01,697.41,0.28677535]
[1735091862503,0.26330114,698.8,697.41,0.28677535]
[1735091862706,1.06902487,699.01,697.41,0.28677535]
[1735091862909,0.26327177,699.0,697.41,0.28677535]
[1735091863605,0.26327177,698.99,697.41,0.28677535]
[1735091863804,0.26327177,698.98,697.41,0.28677535]
[1735091864002,0.26327177,698.97,697.41,0.28677535]
[1735091864203,0.26327177,698.96,697.41,0.28677535]
[1735091864407,0.26325556,698.95,697.41,0.28677535]
[1735091864709,0.26325556,698.94,697.41,0.28677535]
[1735091864909,0.26325556,698.93,697.41,0.28677535]
[1735091865105,0.26325556,698.92,697.41,0.28677535]
[1735091865303,0.26325556,698.91,697.41,0.28677535]
[1735091865501,0.26325556,698.9,697.41,0.28677535]
[1735091865705,0.26325556,698.89,697.41,0.28677535]
[1735091865904,0.26325556,698.88,697.41,0.28677535]
[1735091866107,0.2860821,699.1,697.41,0.28677535]
[1735091866304,0.2632553,699.09,697.41,0.28677535]
[1735091867108,0.2632675,699.08,697.41,0.28677535]
[1735091867310,0.2632675,699.07,697.41,0.28677535]
[1735091867510,0.2632675,699.06,697.41,0.28677535]
[1735091867804,0.2632675,699.05,697.41,0.28677535]
[1735091868010,0.26326126,699.04,697.41,0.28677535]
[1735091868211,0.2860821,699.1,697.41,0.28677535]
[1735091868212,0.26326126,699.03,697.41,0.28677535]
[1735091868412,0.26326126,699.02,697.41,0.28677535]
[1735091868612,0.26326126,699.01,697.41,0.28677535]
[1735091868814,0.26326126,699.0,697.41,0.28677535]
[1735091869111,0.26326126,698.99,697.41,0.28677535]
[1735091869312,0.26326126,698.98,697.41,0.28677535]
[1735091869512,0.26326126,698.97,697.41,0.28677535]
[1735091869709,0.26326126,698.96,697.41,0.28677535]
[1735091869910,0.2860821,699.1,697.41,0.28677535]
[1735091869911,0.26326126,698.95,697.41,0.28677535]
[1735091870110,0.2860821,699.1,697.41,0.28677535]
[1735091870312,0.26325096,699.09,697.41,0.28677535]